fUSD/lending_fUSD_20250119
["ID","MTS","AMOUNT","RATE_DAILY","PERIOD"]
[349585417,1737312632708,-500.0,0.00019178,2]
[349585419,1737312632717,-500.0,0.00019178,2]
[349585421,1737312632726,-500.0,0.00019178,2]
[349585424,1737312632735,-500.0,0.00019178,2]
[349585427,1737312632745,-500.0,0.00019178,2]
[349585430,1737312632754,-380.59110718,0.00019178,2]
[349585431,1737312632763,-500.0,0.00019178,2]
[349585433,1737312632772,-500.0,0.00019178,2]
[349585436,1737312632782,-500.0,0.00019178,2]
[349585437,1737312632791,-500.0,0.00019178,2]
[349585439,1737312632800,-500.0,0.00019178,2]
[349585442,1737312632809,-500.0,0.00019178,2]
[349585443,1737312632819,-500.0,0.00019178,2]
[349585446,1737312632828,-500.0,0.00019178,2]
[349585447,1737312632838,-500.0,0.00019178,2]
[349585449,1737312632847,-500.0,0.00019178,2]
[349585450,1737312632856,-500.0,0.00019178,2]
[349585451,1737312632866,-500.0,0.00019178,2]
[349585452,1737312632875,-289.48430533,0.00019178,2]
[349585453,1737312632884,-500.0,0.00019178,2]
[349585454,1737312632893,-500.0,0.00019178,2]
[349585455,1737312632905,-500.0,0.00019178,2]
[349585456,1737312632915,-500.0,0.00019178,2]
[349585457,1737312632923,-500.0,0.00019178,2]
[349585458,1737312632932,-500.0,0.00019178,2]
[349585459,1737312632942,-500.0,0.00019178,2]
[349585460,1737312632953,-500.0,0.00019178,2]
[349585461,1737312632962,-500.0,0.00019178,2]
[349585462,1737312632971,-500.0,0.00019178,2]
[349585463,1737312632981,-500.0,0.00019178,2]
[349585464,1737312632992,-500.0,0.00019178,2]
[349585465,1737312633002,-500.0,0.00019178,2]
[349585466,1737312633012,-500.0,0.00019178,2]
[349585467,1737312633022,-500.0,0.00019178,2]
[349585468,1737312633032,-500.0,0.00019178,2]
[349585469,1737312633042,-500.0,0.00019178,2]
[349585470,1737312633051,-500.0,0.00019178,2]
[349585471,1737312633061,-500.0,0.00019178,2]
[349585472,1737312633071,-500.0,0.00019178,2]
[349585473,1737312633080,-500.0,0.00019178,2]
[349585474,1737312633090,-500.0,0.00019178,2]
[349585475,1737312633099,-500.0,0.00019178,2]
[349585476,1737312633109,-500.0,0.00019178,2]
[349585477,1737312633119,-500.0,0.00019178,2]
[349585478,1737312633128,-500.0,0.00019178,2]
[349585479,1737312633138,-578.15,0.00019188,2]
[349585480,1737312633148,-150.99,0.00019188,2]
[349585481,1737312633158,-264.65,0.00019188,2]
[349585482,1737312633167,-27565.09,0.00019188,2]
[349585483,1737312633178,-999.99,0.00019188,2]
[349585484,1737312633188,-812.63,0.00019188,2]
[349585485,1737312633198,-200.0,0.00019303,2]
[349585486,1737312633208,-9999.99,0.00019303,2]
[349585487,1737312633218,-200.32154804,0.00019303,2]
[349585488,1737312633228,-200.0,0.0001941,2]
[349585489,1737312633238,-250.0,0.00019433,2]
[349585490,1737312633248,-500.0,0.00019439,2]
[349585491,1737312633258,-200.0,0.00019446,2]
[349585492,1737312633267,-500.0,0.00019452,2]
[349585493,1737312633278,-500.0,0.00019452,2]
[349585494,1737312633288,-627.09967616,0.00019452,2]
[349585495,1737312633298,-500.0,0.00019452,2]
[349585496,1737312633307,-500.0,0.00019452,2]
[349585497,1737312633317,-500.0,0.00019452,2]
[349585498,1737312633326,-500.0,0.00019452,2]
[349585499,1737312633336,-500.0,0.00019452,2]
[349585500,1737312633345,-500.0,0.00019452,2]
[349585501,1737312633354,-500.0,0.00019452,2]
[349585502,1737312633364,-500.0,0.00019452,2]
[349585503,1737312633373,-500.0,0.00019452,2]
[349585504,1737312633382,-500.0,0.00019452,2]
[349585505,1737312633392,-500.0,0.00019452,2]
[349585506,1737312633401,-500.0,0.00019452,2]
[349585507,1737312633412,-500.0,0.00019452,2]
[349585508,1737312633422,-500.0,0.00019452,2]
[349585509,1737312633431,-500.0,0.00019452,2]
[349585510,1737312633440,-475.56438046,0.00019452,2]
[349585511,1737312633449,-500.0,0.00019452,2]
[349585512,1737312633458,-500.0,0.00019452,2]
[349585513,1737312633467,-500.0,0.00019452,2]
[349585514,1737312633476,-500.0,0.00019452,2]
[349585515,1737312633486,-500.0,0.00019452,2]
[349585516,1737312633495,-500.0,0.00019452,2]
[349585517,1737312633504,-500.0,0.00019452,2]
[349585518,1737312633513,-500.0,0.00019452,2]
[349585519,1737312633524,-500.0,0.00019452,2]
[349585520,1737312633534,-500.0,0.00019452,2]
[349585521,1737312633543,-500.0,0.00019452,2]
[349585522,1737312633553,-500.0,0.00019452,2]
[349585523,1737312633562,-500.0,0.00019452,2]
[349585524,1737312633572,-500.0,0.00019452,2]
[349585525,1737312633582,-500.0,0.00019452,2]
[349585526,1737312633591,-500.0,0.00019452,2]
[349585527,1737312633601,-609.89659673,0.00019452,2]
[349585528,1737312633612,-500.0,0.00019452,2]
[349585529,1737312633621,-500.0,0.00019452,2]
[349585530,1737312633631,-500.0,0.00019452,2]
[349585531,1737312633641,-500.0,0.00019452,2]
[349585532,1737312633651,-500.0,0.00019452,2]
[349585533,1737312633660,-500.0,0.00019452,2]
[349585534,1737312633670,-500.0,0.00019452,2]
[349585535,1737312633680,-500.0,0.00019452,2]
[349585536,1737312633689,-500.0,0.00019452,2]
[349585537,1737312633699,-500.0,0.00019452,2]
[349585538,1737312633708,-500.0,0.00019452,2]
[349585539,1737312633718,-500.0,0.00019452,2]
[349585540,1737312633728,-500.0,0.00019452,2]
[349585541,1737312633738,-459.47571749,0.00019452,2]
[349585542,1737312633748,-500.0,0.00019452,2]
[349585543,1737312633757,-500.0,0.00019452,2]
[349585544,1737312633767,-531.58912321,0.00019452,2]
[349585545,1737312633777,-500.0,0.00019452,2]
[349585546,1737312633787,-500.0,0.00019452,2]
[349585547,1737312633797,-649.53,0.00019452,2]
[349585548,1737312633807,-200.0,0.00019477,2]
[349585549,1737312633817,-200.0,0.00019495,2]
[349585550,1737312633827,-476.0197845,0.00019624,2]
[349585551,1737312633837,-500.0,0.00019624,2]
[349585552,1737312633846,-500.0,0.00019624,2]
[349585553,1737312633856,-500.0,0.00019624,2]
[349585554,1737312633866,-500.0,0.00019624,2]
[349585555,1737312633876,-500.0,0.00019624,2]
[349585556,1737312633886,-500.0,0.00019624,2]
[349585557,1737312633896,-500.0,0.00019624,2]
[349585558,1737312633907,-500.0,0.00019624,2]
[349585559,1737312633919,-500.0,0.00019624,2]
[349585560,1737312633929,-500.0,0.00019624,2]
[349585561,1737312633938,-500.0,0.00019624,2]
[349585562,1737312633948,-500.0,0.00019624,2]
[349585563,1737312633959,-500.0,0.00019624,2]
[349585564,1737312633968,-80005.58570625,0.00019625,2]
[349585565,1737312633978,-507.21692308,0.00019625,2]
[349585566,1737312633988,-502.32311637,0.00019625,2]
[349585567,1737312633999,-500.0,0.00019625,2]
[349585568,1737312634009,-300.44767724,0.00019625,2]
[349585569,1737312634019,-500.0,0.000197,2]
[349585570,1737312634030,-490.12,0.00019715,2]
[349585571,1737312634040,-500.0,0.00019725,2]
[349585572,1737312634050,-500.0,0.00019725,2]
[349585573,1737312634060,-500.0,0.00019725,2]
[349585574,1737312634069,-500.0,0.00019725,2]
[349585575,1737312634081,-500.0,0.00019725,2]
[349585576,1737312634091,-500.0,0.00019725,2]
[349585577,1737312634100,-500.0,0.00019725,2]
[349585578,1737312634110,-152.63303509,0.00019725,2]
[349585579,1737312634119,-500.0,0.00019725,2]
[349585580,1737312634129,-500.0,0.00019725,2]
[349585581,1737312634138,-500.0,0.00019725,2]
[349585582,1737312634147,-500.0,0.00019725,2]
[349585583,1737312634157,-500.0,0.00019725,2]
[349585584,1737312634167,-500.0,0.00019725,2]
[349585585,1737312634177,-500.0,0.00019725,2]
[349585586,1737312634186,-500.0,0.00019725,2]
[349585587,1737312634195,-500.0,0.00019725,2]
[349585588,1737312634205,-289.53006669,0.00019725,2]
[349585589,1737312634215,-500.0,0.00019725,2]
[349585590,1737312634226,-500.0,0.00019725,2]
[349585591,1737312634235,-500.0,0.00019725,2]
[349585592,1737312634245,-300.30596388,0.00019725,2]
[349585593,1737312634255,-541.639433,0.00019725,2]
[349585594,1737312634264,-161.826172,0.00019725,2]
[349585595,1737312634275,-500.0,0.00019725,2]
[349585596,1737312634286,-500.0,0.00019725,2]
[349585597,1737312634296,-500.0,0.00019725,2]
[349585598,1737312634306,-500.0,0.00019725,2]
[349585599,1737312634316,-933.192919,0.00019725,2]
[349585600,1737312634326,-500.0,0.00019725,2]
[349585601,1737312634336,-500.0,0.00019725,2]
[349585602,1737312634346,-500.0,0.00019725,2]
[349585603,1737312634355,-883.31,0.00019725,2]
[349585604,1737312634365,-500.0,0.00019725,2]
[349585605,1737312634375,-883.72,0.00019725,2]
[349585606,1737312634384,-500.0,0.00019725,2]
[349585607,1737312634394,-357.0438408,0.00019725,2]
[349585608,1737312634404,-500.0,0.00019725,2]
[349585609,1737312634414,-511.5,0.00019725,2]
[349585610,1737312634423,-500.0,0.00019725,2]
[349585611,1737312634432,-788.51,0.00019725,2]
[349585612,1737312634441,-500.0,0.00019725,2]
[349585613,1737312634451,-560.60911462,0.00019725,2]
[349585614,1737312634460,-500.0,0.00019725,2]
[349585615,1737312634470,-637.00049397,0.00019725,2]
[349585616,1737312634479,-500.0,0.00019725,2]
[349585617,1737312634488,-500.0,0.00019725,2]
[349585618,1737312634497,-500.0,0.00019725,2]
[349585619,1737312634507,-500.0,0.00019725,2]
[349585620,1737312634516,-610.78,0.00019725,2]
[349585621,1737312634528,-500.0,0.00019725,2]
[349585622,1737312634538,-500.0,0.00019725,2]
[349585623,1737312634548,-500.0,0.00019725,2]
[349585624,1737312634558,-500.0,0.00019725,2]
[349585625,1737312634567,-500.0,0.00019725,2]
[349585626,1737312634577,-500.0,0.00019725,2]
[349585627,1737312634586,-579.45,0.00019725,2]
[349585628,1737312634596,-500.0,0.00019725,2]
[349585629,1737312634605,-500.0,0.00019725,2]
[349585630,1737312634615,-500.0,0.00019725,2]
[349585631,1737312634624,-500.0,0.00019725,2]
[349585632,1737312634635,-500.0,0.00019725,2]
[349585633,1737312634644,-279.72909541,0.00019725,2]
[349585634,1737312634654,-500.0,0.00019725,2]
[349585635,1737312634663,-500.0,0.00019725,2]
[349585636,1737312634674,-500.0,0.00019725,2]
[349585637,1737312634683,-647.26839502,0.00019725,2]
[349585638,1737312634693,-500.0,0.00019725,2]
[349585639,1737312634703,-535.9,0.00019725,2]
[349585640,1737312634712,-547.15,0.00019725,2]
[349585641,1737312634721,-500.0,0.00019725,2]
[349585642,1737312634730,-500.0,0.00019725,2]
[349585643,1737312634740,-500.0,0.00019725,2]
[349585644,1737312634751,-500.0,0.00019725,2]
[349585645,1737312634761,-614.64,0.00019725,2]
[349585646,1737312634770,-500.0,0.00019725,2]
[349585647,1737312634782,-160.87623775,0.00019726,2]
[349585648,1737312634791,-500.0,0.00019726,2]
[349585649,1737312634801,-500.0,0.00019726,2]
[349585650,1737312634811,-500.0,0.00019726,2]
[349585651,1737312634820,-573.60246127,0.00019726,2]
[349585652,1737312634829,-500.0,0.00019726,2]
[349585653,1737312634839,-500.0,0.00019726,2]
[349585654,1737312634848,-500.0,0.00019726,2]
[349585655,1737312634857,-500.0,0.00019726,2]
[349585656,1737312634867,-500.0,0.00019726,2]
[349585657,1737312634876,-500.0,0.00019726,2]
[349585658,1737312634885,-500.0,0.00019726,2]
[349585659,1737312634895,-566.5209284,0.00019726,2]
[349585660,1737312634906,-500.0,0.00019726,2]
[349585661,1737312634918,-500.0,0.00019726,2]
[349585662,1737312634927,-500.0,0.00019726,2]
[349585663,1737312634937,-500.0,0.00019726,2]
[349585664,1737312634946,-500.0,0.00019726,2]
[349585665,1737312634959,-500.0,0.00019726,2]
[349585666,1737312634969,-500.0,0.00019726,2]
[349585667,1737312634978,-500.0,0.00019726,2]
[349585668,1737312634987,-584.41976524,0.00019726,2]
[349585669,1737312634998,-500.0,0.00019726,2]
[349585670,1737312635007,-500.0,0.00019726,2]
[349585671,1737312635016,-500.0,0.00019726,2]
[349585672,1737312635026,-500.0,0.00019726,2]
[349585673,1737312635035,-500.0,0.00019726,2]
[349585674,1737312635044,-500.0,0.00019726,2]
[349585675,1737312635053,-500.0,0.00019726,2]
[349585676,1737312635063,-500.0,0.00019726,2]
[349585677,1737312635072,-158.24509703,0.00019726,2]
[349585678,1737312635081,-500.0,0.00019726,2]
[349585679,1737312635090,-500.0,0.00019726,2]
[349585680,1737312635100,-500.0,0.00019726,2]
[349585681,1737312635109,-500.0,0.00019726,2]
[349585682,1737312635118,-500.0,0.00019726,2]
[349585683,1737312635127,-500.0,0.00019726,2]
[349585684,1737312635137,-500.0,0.00019726,2]
[349585685,1737312635146,-500.0,0.00019726,2]
[349585686,1737312635155,-500.0,0.00019726,2]
[349585687,1737312635165,-500.0,0.00019726,2]
[349585688,1737312635174,-500.0,0.00019726,2]
[349585689,1737312635183,-500.0,0.00019726,2]
[349585690,1737312635192,-625.65938697,0.00019726,2]
[349585691,1737312635202,-500.0,0.00019726,2]
[349585692,1737312635211,-500.0,0.00019726,2]
[349585693,1737312635219,-500.0,0.00019726,2]
[349585694,1737312635228,-500.0,0.00019726,2]
[349585695,1737312635237,-490.12,0.00019889,2]
[349585696,1737312635247,-500.0,0.00019898,2]
[349585697,1737312635256,-500.0,0.00019898,2]
[349585698,1737312635265,-500.0,0.00019898,2]
[349585699,1737312635274,-199.01,0.00019898,2]
[349585700,1737312635283,-500.0,0.00019898,2]
[349585701,1737312635292,-628.88649551,0.00019898,2]
[349585702,1737312635301,-500.0,0.00019898,2]
[349585703,1737312635311,-500.0,0.00019898,2]
[349585704,1737312635321,-500.0,0.00019898,2]
[349585705,1737312635330,-36130.7807,0.00019899,2]
[349585706,1737312635339,-500.0,0.00019899,2]
[349585707,1737312635349,-250.0,0.00019923,2]
[349585708,1737312635358,-548.1,0.00019999,2]
[349585709,1737312635367,-541.639433,0.00019999,2]
[349585710,1737312635377,-228.84792377,0.00019999,2]
[349585711,1737312635386,-584.7425027,0.00019999,2]
[349585712,1737312635395,-933.192919,0.00019999,2]
[349585713,1737312635404,-500.0,0.00019999,2]
[349585714,1737312635413,-500.0,0.00019999,2]
[349585715,1737312635422,-883.31,0.00019999,2]
[349585716,1737312635431,-500.0,0.00019999,2]
[349585717,1737312635441,-883.72,0.00019999,2]
[349585718,1737312635450,-788.51,0.00019999,2]
[349585719,1737312635461,-500.0,0.00019999,2]
[349585720,1737312635470,-500.0,0.00019999,2]
[349585721,1737312635480,-500.0,0.00019999,2]
[349585722,1737312635489,-500.0,0.00019999,2]
[349585723,1737312635499,-500.0,0.00019999,2]
[349585724,1737312635508,-500.0,0.00019999,2]
[349585725,1737312635517,-579.45,0.00019999,2]
[349585726,1737312635528,-500.0,0.00019999,2]
[349585727,1737312635538,-520.53273116,0.00019999,2]
[349585728,1737312635548,-500.0,0.00019999,2]
[349585729,1737312635557,-500.0,0.00019999,2]
[349585730,1737312635567,-178.41376934,0.00019999,2]
[349585731,1737312635576,-500.0,0.00019999,2]
[349585732,1737312635585,-614.64,0.00019999,2]
[349585733,1737312635594,-500.0,0.00019999,2]
[349585734,1737312635603,-208.61413785,0.0002,2]
[349585735,1737312635613,-500.0,0.0002,2]
[349585736,1737312635623,-500.0,0.0002,2]
[349585737,1737312635632,-500.0,0.0002,2]
[349585738,1737312635641,-403.94299556,0.0002,2]
[349585739,1737312635651,-500.0,0.0002,2]
[349585740,1737312635661,-500.0,0.0002,2]
[349585741,1737312635671,-500.0,0.0002,2]
[349585742,1737312635680,-239.86975913,0.0002,2]
[349585743,1737312635689,-500.0,0.0002,2]
[349585744,1737312635699,-211.59012291,0.0002,2]
[349585745,1737312635708,-500.0,0.0002,2]
[349585746,1737312635717,-500.0,0.0002,2]
[349585747,1737312635727,-500.0,0.0002,2]
[349585748,1737312635737,-500.0,0.0002,2]
[349585749,1737312635746,-500.0,0.0002,2]
[349585750,1737312635755,-500.0,0.0002,2]
[349585751,1737312635764,-500.0,0.0002,2]
[349585752,1737312635775,-500.0,0.0002,2]
[349585753,1737312635784,-500.0,0.0002,2]
[349585754,1737312635793,-500.0,0.0002,2]
[349585755,1737312635803,-500.0,0.0002,2]
[349585756,1737312635811,-500.0,0.0002,2]
[349585757,1737312635821,-500.0,0.0002,2]
[349585758,1737312635830,-500.0,0.0002,2]
[349585759,1737312635840,-500.0,0.0002,2]
[349585760,1737312635849,-500.0,0.0002,2]
[349585761,1737312635859,-500.0,0.0002,2]
[349585762,1737312635868,-500.0,0.0002,2]
[349585763,1737312635878,-627.32444744,0.0002,2]
[349585764,1737312635887,-500.0,0.0002,2]
[349585765,1737312635897,-500.0,0.0002,2]
[349585766,1737312635907,-500.0,0.0002,2]
[349585767,1737312635921,-500.0,0.0002,2]
[349585768,1737312635930,-500.0,0.0002,2]
[349585769,1737312635939,-500.0,0.0002,2]
[349585770,1737312635948,-500.0,0.0002,2]
[349585771,1737312635959,-500.0,0.0002,2]
[349585772,1737312635968,-156.76,0.00020036,2]
[349585773,1737312635977,-150.0,0.00020078,2]
[349585774,1737312635986,-500.0,0.00020172,2]
[349585775,1737312635996,-500.0,0.00020172,2]
[349585776,1737312636005,-218.41,0.00020172,2]
[349585777,1737312636014,-500.0,0.00020172,2]
[349585778,1737312636023,-500.0,0.00020172,2]
[349585779,1737312636032,-500.0,0.00020172,2]
[349585780,1737312636180,-500.0,0.00020172,2]
[349585781,1737312636190,-461.2732,0.00020173,2]
[349585782,1737312636199,-500.0,0.00020173,2]
[349585783,1737312636209,-150.0,0.000202,2]
[349585784,1737312636218,-490.12,0.00020263,2]
[349585785,1737312636228,-500.0,0.00020273,2]
[349585786,1737312636237,-500.0,0.00020273,2]
[349585787,1737312636246,-500.0,0.00020273,2]
[349585788,1737312636256,-500.0,0.00020273,2]
[349585789,1737312636266,-500.0,0.00020273,2]
[349585790,1737312636276,-500.0,0.00020273,2]
[349585791,1737312636286,-500.0,0.00020273,2]
[349585792,1737312636296,-500.0,0.00020273,2]
[349585793,1737312636306,-500.0,0.00020273,2]
[349585794,1737312636315,-500.0,0.00020273,2]
[349585795,1737312636325,-500.0,0.00020273,2]
[349585796,1737312636334,-500.0,0.00020273,2]
[349585797,1737312636343,-210.59046057,0.00020273,2]
[349585798,1737312636353,-500.0,0.00020273,2]
[349585799,1737312636362,-500.0,0.00020273,2]
[349585800,1737312636371,-170.36036268,0.00020273,2]
[349585801,1737312636381,-500.0,0.00020273,2]
[349585802,1737312636391,-487.89500768,0.00020273,2]
[349585803,1737312636400,-500.0,0.00020273,2]
[349585804,1737312636410,-500.0,0.00020273,2]
[349585805,1737312636419,-500.0,0.00020273,2]
[349585806,1737312636429,-500.0,0.00020273,2]
[349585807,1737312636438,-500.0,0.00020273,2]
[349585808,1737312636448,-500.0,0.00020273,2]
[349585809,1737312636458,-500.0,0.00020273,2]
[349585810,1737312636467,-500.0,0.00020273,2]
[349585811,1737312636477,-500.0,0.00020273,2]
[349585812,1737312636486,-500.0,0.00020273,2]
[349585813,1737312636495,-500.0,0.00020273,2]
[349585814,1737312636506,-500.0,0.00020273,2]
[349585815,1737312636515,-500.0,0.00020273,2]
[349585816,1737312636526,-500.0,0.00020273,2]
[349585817,1737312636539,-541.639433,0.00020273,2]
[349585818,1737312636549,-933.192919,0.00020273,2]
[349585819,1737312636558,-500.0,0.00020273,2]
[349585820,1737312636568,-500.0,0.00020273,2]
[349585821,1737312636579,-883.31,0.00020273,2]
[349585822,1737312636589,-500.0,0.00020273,2]
[349585823,1737312636599,-883.72,0.00020273,2]
[349585824,1737312636608,-788.51,0.00020273,2]
[349585825,1737312636618,-500.0,0.00020273,2]
[349585826,1737312636628,-278.47,0.00020273,2]
[349585827,1737312636637,-500.0,0.00020273,2]
[349585828,1737312636647,-500.0,0.00020273,2]
[349585829,1737312636657,-500.0,0.00020273,2]
[349585830,1737312636667,-579.45,0.00020273,2]
[349585831,1737312636676,-500.0,0.00020273,2]
[349585832,1737312636686,-500.0,0.00020273,2]
[349585833,1737312636696,-453.61101976,0.00020273,2]
[349585834,1737312636818,-46.38898024,0.00020273,2]
[349585835,1737312636827,-500.0,0.00020273,2]
[349585836,1737312636837,-500.0,0.00020273,2]
[349585837,1737312636846,-614.64,0.00020273,2]
[349585838,1737312636856,-500.0,0.00020446,2]
[349585839,1737312636866,-500.0,0.00020446,2]
[349585840,1737312636875,-500.48189289,0.00020446,2]
[349585841,1737312636884,-500.0,0.00020446,2]
[349585842,1737312636894,-500.0,0.00020446,2]
[349585843,1737312636903,-500.0,0.00020446,2]
[349585844,1737312636916,-500.0,0.00020446,2]
[349585845,1737312636925,-500.0,0.00020446,2]
[349585846,1737312636934,-500.0,0.00020446,2]
[349585847,1737312636943,-237.13278313,0.00020446,2]
[349585848,1737312638042,-150.0,0.00018698,2]
[349585849,1737312638052,-262.86721687,0.00020446,2]
[349585850,1737312638061,-553.79,0.00020446,2]
[349585851,1737312638071,-500.0,0.00020446,2]
[349585852,1737312638080,-415.63549004,0.00020446,2]
[349585853,1737312638091,-84.36450996,0.00020446,2]
[349585854,1737312638101,-500.0,0.00020446,2]
[349585855,1737312638110,-500.0,0.00020446,2]
[349585856,1737312638120,-500.0,0.00020446,2]
[349585857,1737312638129,-501.82926816,0.00020446,2]
[349585858,1737312638139,-263.06583049,0.00020447,2]
[349585859,1737312638148,-921.5947055,0.00020447,2]
[349585860,1737312638157,-5000.0,0.00020447,2]
[349585861,1737312638167,-200.0,0.00020477,2]
[349585862,1737312638176,-150.0,0.000205,3]
[349585863,1737312638186,-500.0,0.00020547,2]
[349585864,1737312638195,-500.0,0.00020547,2]
[349585865,1737312638204,-500.0,0.00020547,2]
[349585866,1737312638214,-500.0,0.00020547,2]
[349585867,1737312638223,-500.0,0.00020547,2]
[349585868,1737312638232,-390.69731303,0.00020547,2]
[349585921,1737312640267,-109.30268697,0.00020547,2]
[349585922,1737312640278,-501.80276803,0.00020547,2]
[349585923,1737312640290,-124.28939479,0.00020547,2]
[349585924,1737312640299,-500.0,0.00020547,2]
[349585925,1737312640308,-500.0,0.00020547,2]
[349585926,1737312640317,-112.76189748,0.00020547,2]
[349585931,1737312643381,-387.23810252,0.00020547,2]
[349585932,1737312643391,-500.0,0.00020547,2]
[349585933,1737312643401,-33.86127221,0.00020547,2]
[349585934,1737312643413,-466.13872779,0.00020547,2]
[349585935,1737312643422,-500.0,0.00020547,2]
[349585936,1737312643432,-500.0,0.00020547,2]
[349585937,1737312643441,-500.0,0.00020547,2]
[349585938,1737312643450,-500.0,0.00020547,2]
[349585939,1737312643459,-500.0,0.00020547,2]
[349585940,1737312643469,-500.0,0.00020547,2]
[349585941,1737312643478,-500.0,0.00020547,2]
[349585942,1737312643487,-500.0,0.00020547,2]
[349585943,1737312643497,-500.0,0.00020547,2]
[349585944,1737312643506,-500.0,0.00020547,2]
[349585945,1737312643515,-500.0,0.00020547,2]
[349585946,1737312643525,-500.0,0.00020547,2]
[349585947,1737312643536,-500.0,0.00020547,2]
[349585948,1737312643545,-500.0,0.00020547,2]
[349585949,1737312643554,-500.0,0.00020547,2]
[349585951,1737312643564,-500.0,0.00020547,2]
[349585952,1737312643573,-101.03246459,0.00020547,2]
[349585955,1737312643586,-398.96753541,0.00020547,2]
[349585957,1737312643595,-500.0,0.00020547,2]
[349585959,1737312643605,-500.0,0.00020547,2]
[349585961,1737312643614,-883.31,0.00020547,2]
[349585964,1737312643624,-500.0,0.00020547,2]
[349585967,1737312643634,-883.72,0.00020547,2]
[349585969,1737312643644,-788.51,0.00020547,2]
[349585971,1737312643653,-500.0,0.00020547,2]
[349585973,1737312643663,-23.64208959,0.00020547,2]
[349586221,1737312646122,-476.35791041,0.00020547,2]
[349586223,1737312646132,-499.33360808,0.00020547,2]
[349586225,1737312646141,-383.40088814,0.00020547,2]
[349586231,1737312646183,-142.69153599,0.00020547,2]
[349586232,1737312646192,-579.45,0.00020547,2]
[349586234,1737312646202,-327.85846401,0.00020547,2]
[349586251,1737312646372,-172.14153599,0.00020547,2]
[349586254,1737312646382,-500.0,0.00020547,2]
[349586256,1737312646391,-500.0,0.00020547,2]
[349586258,1737312646400,-500.0,0.00020547,2]
[349586260,1737312646409,-500.0,0.00020547,2]
[349586262,1737312646419,-292.80203051,0.00020547,2]
[349586264,1737312646432,-315.599,0.00020547,2]
[349586267,1737312646451,-6.23896949,0.00020547,2]
[349586269,1737312646461,-288.5233225,0.0002058,2]
[349586271,1737312646470,-500.0,0.0002072,2]
[349586273,1737312646480,-500.0,0.0002072,2]
[349586275,1737312646489,-500.0,0.0002072,2]
[349586277,1737312646498,-500.0,0.0002072,2]
[349586279,1737312646507,-500.0,0.0002072,2]
[349586281,1737312646516,-500.0,0.0002072,2]
[349586283,1737312646526,-3000.0,0.0002079,2]
[349586285,1737312646545,-500.0,0.00020821,2]
[349586287,1737312646557,-525.3323924,0.00020821,2]
[349586289,1737312646567,-500.0,0.00020821,2]
[349586291,1737312646577,-621.04838309,0.00020821,2]
[349586293,1737312646586,-500.0,0.00020821,2]
[349586295,1737312646595,-500.0,0.00020821,2]
[349586297,1737312646605,-500.0,0.00020821,2]